Workbook

Sheet 공급대상토지 세부내역
A1: 다산신도시 진건/지금지구 점포겸용 단독주택용지 공급대상 필지(38필지)
A2: 연번 | B2: 사업지구 | C2: 도면 번호 | D2: 가구 번호 | E2: 획지 | F2: 공급면적 (㎡) | G2: 공급(예정)가격(원) | J2: 입찰보증금(원) | M2: 용적률 (%) | N2: 건폐율 (%) | O2: 용도지역 | P2: 최고층 | Q2: 가구수 | R2: 토지사용가능시기 | S2: 준공시기
G3: 주거(확정) | H3: 비주거(입찰) | I3: 공급예정금액 합계 | J3: 주거부분보증금(확정) | K3: 비주거(이상) | L3: 입찰보증금(이상)
A4: 1 | B4: 진건지구 | C4: F-2 | D4: ⑤ | E4: -6 | F4: =148.4+98.9 -> 247.3 | G4: 262668000 | H4: 345161000 | I4: =G4+H4 -> 607829000 | J4: =G4*5% -> 13133400 | K4: 입찰금액의 5% 이상 | L4: =I4*5% -> 30391450 | M4: 180 | N4: 60 | O4: 제1종 일반주거지역 | P4: 4층 (필로티구조포함) | Q4: 5가구 이하 | R4: 분양대금 완납이후 | S4: 1단계 준공완료(2018.8월)
A5: 2 | E5: -7 | F5: =146.3+97.4 -> 243.7 | G5: 251636000 | H5: 335056000 | I5: =G5+H5 -> 586692000 | J5: =G5*5% -> 12581800 | L5: =I5*5% -> 29334600
A6: 3 | E6: -8 | F6: =146.1+97.4 -> 243.5 | G6: 251292000 | H6: 335056000 | I6: 586348000 | J6: 12564600 | L6: 29317400
A7: 4 | D7: ⑥ | E7: -1 | F7: =178.8+119.1 -> 297.9 | G7: 316476000 | H7: 415659000 | I7: 732135000 | J7: 15823800 | L7: 36606750
A8: 5 | E8: -2 | F8: =178.9+119.2 -> 298.1 | G8: 316653000 | H8: 416008000 | I8: 732661000 | J8: 15832650 | L8: 36633050
A9: 6 | E9: -3 | F9: =183.2+122.1 -> 305.3 | G9: 315104000 | H9: 420024000 | I9: 735128000 | J9: 15755200 | L9: 36756400
A10: 7 | E10: -4 | F10: =206.6+137.7 -> 344.3 | G10: 365682000 | H10: 480573000 | I10: 846255000 | J10: 18284100 | L10: 42312750
A11: 8 | E11: -6 | F11: =183.2+122 -> 305.2 | G11: 315104000 | H11: 419680000 | I11: 734784000 | J11: 15755200 | L11: 36739200
A12: 9 | D12: ⑦ | E12: -1 | F12: =201.9+134.6 -> 336.5 | G12: 357363000 | H12: 469754000 | I12: 827117000 | J12: 17868150 | L12: 41355850
A13: 10 | E13: -2 | F13: =201.9+134.6 -> 336.5 | G13: 357363000 | H13: 469754000 | I13: 827117000 | J13: 17868150 | L13: 41355850
A14: 11 | E14: -3 | F14: =206.1+137.3 -> 343.4 | G14: 354492000 | H14: 472312000 | I14: 826804000 | J14: 17724600 | L14: 41340200
A15: 12 | E15: -5 | F15: =201+134 -> 335 | G15: 355770000 | H15: 467660000 | I15: 823430000 | J15: 17788500 | L15: 41171500
A16: 13 | E16: -6 | F16: =206.2+137.4 -> 343.6 | G16: 354664000 | H16: 472656000 | I16: 827320000 | J16: 17733200 | L16: 41366000
A17: 1 | B17: 지금지구 | C17: F-1 | D17: ① | E17: -3 | F17: =141.5+94.3 -> 235.8 | G17: 256115000 | H17: 341366000 | I17: =G17+H17 -> 597481000 | J17: 12805750 | K17: 입찰금액의 5% 이상 | L17: 29874050 | M17: 180 | N17: 60 | O17: 제1종 일반주거지역 | P17: 4층 (필로티구조포함) | Q17: 5가구 이하 | R17: 분양대금 완납이후 | S17: 1단계 준공완료(2018.8월)
A18: 2 | E18: -5 | F18: =141.5+94.3 -> 235.8 | G18: 249040000 | H18: 336651000 | I18: =G18+H18 -> 585691000 | J18: 12452000 | L18: 29284550
A19: 3 | D19: ④ | E19: -13 | F19: =153.6+102.3 -> 255.9 | G19: 262656000 | H19: 348843000 | I19: 611499000 | J19: 13132800 | L19: 30574950
A20: 4 | D20: ⑤ | E20: -2 | F20: =158.9+105.8 -> 264.7 | G20: 271719000 | H20: 360778000 | I20: 632497000 | J20: 13585950 | L20: 31624850
A21: 5 | E21: -3 | F21: =158.8+105.8 -> 264.6 | G21: 271548000 | H21: 360778000 | I21: 632326000 | J21: 13577400 | L21: 31616300
A22: 6 | E22: -4 | F22: =158.4+105.6 -> 264 | G22: 270864000 | H22: 360096000 | I22: 630960000 | J22: 13543200 | L22: 31548000 | S22: 2단계 준공(2019.12월 예상)
A23: 7 | E23: -5 | F23: 264 | G23: 270864000 | H23: 360096000 | I23: 630960000 | J23: 13543200 | L23: 31548000
A24: 8 | E24: -6 | F24: 264 | G24: 270864000 | H24: 360096000 | I24: 630960000 | J24: 13543200 | L24: 31548000
A25: 9 | E25: -7 | F25: 264 | G25: 270864000 | H25: 360096000 | I25: 630960000 | J25: 13543200 | L25: 31548000
A26: 10 | E26: -10 | F26: 264 | G26: 262944000 | H26: 349536000 | I26: 612480000 | J26: 13147200 | L26: 30624000
A27: 11 | E27: -12 | F27: 264 | G27: 262944000 | H27: 349536000 | I27: 612480000 | J27: =G27*5% -> 13147200 | L27: 30624000
A28: 12 | E28: -14 | F28: =141+94 -> 235 | G28: 234060000 | H28: 311140000 | I28: 545200000 | J28: 11703000 | L28: 27260000
A29: 13 | C29: F-3 | D29: ② | E29: -5 | F29: =177.6+118.3 -> 295.9 | G29: 310800000 | H29: 423514000 | I29: 734314000 | J29: 15540000 | L29: 36715700 | S29: 1단계 준공완료(2018.8월)
A30: 14 | D30: ③ | E30: -1 | F30: =177.6+118.3 -> 295.9 | G30: 321456000 | H30: 422331000 | I30: 743787000 | J30: 16072800 | L30: 37189350
A31: 15 | E31: -5 | F31: =177.6+118.4 -> 296 | G31: 312576000 | H31: 416768000 | I31: 729344000 | J31: 15628800 | L31: 36467200
A32: 16 | E32: -10 | F32: =177.6+118.4 -> 296 | G32: 316128000 | H32: 421504000 | I32: 737632000 | J32: 15806400 | L32: 36881600
A33: 17 | D33: ④ | E33: -1 | F33: =187.2+124.8 -> 312 | G33: 342576000 | H33: 449280000 | I33: 791856000 | J33: 17128800 | L33: 39592800
A34: 18 | C34: F-4 | D34: ② | E34: -1 | F34: =148.2+98.8 -> 247 | G34: 268242000 | H34: 358644000 | I34: 626886000 | J34: 13412100 | L34: 31344300
A35: 19 | E35: -11 | F35: =148.8+99.2 -> 248 | G35: 267840000 | H35: 362080000 | I35: 629920000 | J35: 13392000 | L35: 31496000
A36: 20 | E36: -12 | F36: =148.8+99.2 -> 248 | G36: 275280000 | H36: 367040000 | I36: 642320000 | J36: 13764000 | L36: 32116000
A37: 21 | C37: F-5 | D37: ① | E37: -2 | F37: =118.8+79.2 -> 198 | G37: 158004000 | H37: 218592000 | I37: 376596000 | J37: 7900200 | L37: 18829800
A38: 22 | E38: -3 | F38: =118.8+79.2 -> 198 | G38: 158004000 | H38: 218592000 | I38: 376596000 | J38: 7900200 | L38: 18829800
A39: 23 | D39: ② | E39: -2 | F39: =138.6+92.4 -> 231 | G39: 184338000 | H39: 255024000 | I39: 439362000 | J39: 9216900 | L39: 21968100
A40: 24 | D40: ③ | E40: -2 | F40: =158.4+105.6 -> 264 | G40: 224928000 | H40: 307296000 | I40: 532224000 | J40: 11246400 | L40: 26611200
A41: 25 | E41: -3 | F41: =158.4+105.6 -> 264 | G41: 224928000 | H41: 307296000 | I41: 532224000 | J41: 11246400 | L41: 26611200
